bitfinex/quotes_BTCUSD_20241111
["timestamp","ask_amount","ask_price","bid_price","bid_amount"]
[1731357878563,0.0017048,86935.0,86932.0,0.1]
[1731357878820,0.0017048,86935.0,86934.0,0.1]
[1731357879003,0.0017048,86935.0,86934.0,0.21994075]
[1731357879410,0.0017048,86935.0,86934.0,0.25111057]
[1731357879757,0.0017048,86935.0,86934.0,0.21994075]
[1731357880826,0.0017048,86935.0,86928.0,0.0464463]
[1731357881037,0.0017048,86935.0,86930.0,0.1]
[1731357881240,0.0001144,86943.0,86931.0,0.00230039]
[1731357881656,0.0001144,86943.0,86930.0,0.1]
[1731357882064,0.0001144,86943.0,86924.0,0.1]
[1731357882255,0.0001144,86943.0,86927.0,0.1]
[1731357882504,0.0001144,86943.0,86927.0,0.21994075]
[1731357882705,0.0017054,86935.0,86927.0,0.21994075]
[1731357882921,0.0017054,86935.0,86928.0,0.00230039]
[1731357883344,0.0017054,86935.0,86930.0,0.1]
[1731357883554,0.0017054,86935.0,86932.0,0.1]
[1731357884596,0.0017054,86935.0,86914.0,0.0471]
[1731357884597,0.0017054,86935.0,86922.0,0.005]
[1731357884772,0.0017054,86935.0,86934.0,0.3]
[1731357884984,0.0017054,86935.0,86934.0,0.41994075]
[1731357885635,0.0017054,86935.0,86934.0,0.44794075]
[1731357885857,0.0017054,86935.0,86934.0,0.50204075]
[1731357886076,0.0005246,86946.0,86942.0,0.01]
[1731357886318,0.17265988,86945.0,86944.0,0.1]
[1731357886521,0.0005246,86946.0,86944.0,0.21994075]
[1731357886732,0.0005246,86946.0,86945.0,0.11994075]
[1731357886949,0.0005246,86946.0,86945.0,0.24794075]
[1731357887190,0.0005246,86946.0,86945.0,0.24994075]
[1731357887619,0.0005246,86946.0,86945.0,0.41994075]
[1731357888086,0.0005246,86946.0,86945.0,0.3]
[1731357889436,0.0005246,86946.0,86945.0,0.42494075]
[1731357890104,0.0005246,86946.0,86945.0,0.41994075]
[1731357891475,0.0005246,86946.0,86945.0,0.3]
[1731357891929,0.0005246,86946.0,86945.0,0.41994075]
[1731357892841,0.0005246,86946.0,86945.0,0.2]
[1731357893661,0.04817331,86946.0,86945.0,0.2]
[1731357894069,0.04817331,86946.0,86945.0,0.3]
[1731357895389,0.04817331,86946.0,86945.0,0.3008519]
[1731357897004,0.0005246,86946.0,86945.0,0.42079265]
[1731357897980,0.0005246,86946.0,86945.0,0.3008519]
[1731357903294,0.19616535,86946.0,86945.0,0.2008519]
[1731357903503,0.0762246,86946.0,86945.0,0.2008519]
[1731357903706,0.0005246,86946.0,86945.0,0.2008519]
[1731357903914,0.0757,86956.0,86945.0,0.2008519]
[1731357903915,0.03213376,86956.0,86945.0,0.2008519]
[1731357904157,0.17265988,86954.0,86945.0,0.2008519]
[1731357904376,0.29260063,86954.0,86945.0,0.2008519]
[1731357904587,0.29260063,86954.0,86946.0,0.1]
[1731357904794,0.11994075,86954.0,86946.0,0.1]
[1731357905398,1.61994075,86954.0,86946.0,0.1]
[1731357905601,1.61994075,86954.0,86945.0,0.2008519]
[1731357905602,1.61994075,86954.0,86953.0,0.2]
[1731357906663,1.61994075,86954.0,86945.0,0.0008519]
[1731357906664,0.005,86949.0,86945.0,0.0008519]
[1731357906881,0.20002357,86946.0,86945.0,0.0008519]
[1731357907079,0.32496432,86946.0,86945.0,0.0008519]
[1731357907283,0.37246432,86946.0,86945.0,0.0008519]
[1731357908258,0.16744075,86946.0,86945.0,0.0008519]
[1731357908690,0.17244075,86946.0,86945.0,0.0008519]
[1731357908929,0.005,86933.0,86898.0,0.0767]
[1731357909070,1.89046432,86946.0,86925.0,0.17265988]
[1731357909071,0.005,86926.0,86925.0,0.17265988]
[1731357909272,0.005,86926.0,86898.0,0.0767]
[1731357909273,0.11994075,86926.0,86898.0,0.0767]
[1731357909509,0.11994075,86925.0,86914.0,0.17265988]
[1731357909707,0.11994075,86925.0,86905.0,0.17265988]
[1731357909708,0.17265988,86924.0,86905.0,0.17265988]
[1731357909994,0.27582357,86932.0,86905.0,0.17265988]
[1731357909995,0.11994075,86923.0,86905.0,0.17265988]
[1731357910175,0.11994075,86923.0,86906.0,0.1]
[1731357910585,0.17265988,86922.0,86906.0,0.1]
[1731357910837,0.11994075,86921.0,86906.0,0.1]
[1731357911932,0.11994075,86921.0,86899.0,0.00230126]
[1731357912134,0.37268345,86913.0,86887.0,0.0798]
[1731357912334,0.37268345,86913.0,86902.0,0.17265988]
[1731357912335,0.11994075,86912.0,86902.0,0.17265988]
[1731357912618,0.11994075,86912.0,86893.0,0.17265988]
[1731357912996,0.17265988,86911.0,86888.0,0.00230156]
[1731357913370,0.11994075,86910.0,86891.0,0.17265988]
[1731357913615,0.005,86908.0,86880.0,0.0467]
[1731357913824,0.11994075,86907.0,86892.0,0.17265988]
[1731357914042,0.11994075,86907.0,86883.0,0.17265988]
[1731357914297,0.11994075,86907.0,86884.0,0.00230164]
[1731357914619,0.11994075,86907.0,86884.0,0.1]
[1731357915880,0.17265988,86901.0,86875.0,0.0758]
[1731357916089,0.11994075,86901.0,86886.0,0.1]
[1731357916291,0.17265988,86897.0,86886.0,0.1]
[1731357916526,0.17265988,86897.0,86866.0,0.1220527]
[1731357916527,0.20002357,86895.0,86866.0,0.1220527]
[1731357916733,0.20002357,86895.0,86882.0,0.17265988]
[1731357916859,0.20002357,86895.0,86873.0,0.17265988]
[1731357916860,0.17265988,86894.0,86873.0,0.17265988]
[1731357917756,0.17265988,86894.0,86874.0,0.1]
[1731357918096,0.11994075,86897.0,86874.0,0.1]
[1731357918298,1.5,86903.0,86874.0,0.1]
[1731357918299,0.17265988,86896.0,86874.0,0.09810189]
[1731357918497,0.17265988,86896.0,86884.0,0.0008519]
[1731357918731,0.00230192,86895.0,86884.0,0.0008519]
[1731357919093,0.04765036,86897.0,86885.0,0.17265988]
[1731357919318,0.17265988,86906.0,86886.0,0.00230157]
[1731357919533,0.17265988,86897.0,86886.0,0.00230157]
[1731357919729,0.084,86927.0,86896.0,0.17265988]
[1731357919944,0.0017038,86946.0,86896.0,0.17265988]
[1731357919945,0.17265988,86915.0,86905.0,0.20002357]
[1731357920141,0.17265988,86954.0,86915.0,0.0454]
[1731357920379,0.17265988,86926.0,86925.0,0.005]
[1731357920584,0.17265988,86954.0,86933.0,0.1]
[1731357920783,0.17265988,86954.0,86934.0,0.11994075]
[1731357920997,0.17265988,86944.0,86943.0,0.1]
[1731357921202,0.17265988,86954.0,86943.0,0.21994075]
[1731357921627,0.17265988,86954.0,86943.0,0.1]
[1731357922077,0.00230192,86953.0,86930.0,0.0758]
[1731357922294,0.00230192,86953.0,86934.0,0.1]
[1731357922527,0.00230192,86953.0,86934.0,0.09992574]
[1731357923365,0.00230192,86953.0,86930.0,0.0758]
[1731357923562,0.00230192,86953.0,86931.0,0.17265988]
[1731357923835,0.17265988,86945.0,86930.0,0.0758]
[1731357924000,0.00230192,86944.0,86930.0,0.0758]
[1731357925015,0.04899932,86946.0,86930.0,0.0758]
[1731357925016,0.04899932,86946.0,86933.0,0.1]
[1731357925213,0.17265988,86934.0,86915.0,0.03357866]
[1731357925337,0.17265988,86934.0,86905.0,0.005]
[1731357925338,0.15,86934.0,86920.0,0.17265988]
[1731357925536,0.15,86934.0,86906.0,0.11994075]
[1731357925775,0.15,86934.0,86904.0,0.1234]
[1731357925776,0.29260063,86933.0,86907.0,0.17265988]
[1731357925927,0.17265988,86924.0,86904.0,0.0754]
[1731357926126,0.29260063,86933.0,86889.0,0.05036799]
[1731357926127,0.005,86926.0,86905.0,0.17265988]
[1731357926323,0.17265988,86924.0,86905.0,0.17265988]
[1731357926527,0.11994075,86923.0,86905.0,0.17265988]
[1731357926835,0.11994075,86923.0,86890.0,0.0754]
[1731357927046,0.17265988,86914.0,86891.0,0.29260063]
[1731357927193,0.00230192,86913.0,86891.0,0.29260063]
[1731357927405,0.11994075,86923.0,86891.0,0.29260063]
[1731357927406,0.00230192,86922.0,86891.0,0.29260063]
[1731357927749,0.17265988,86913.0,86891.0,0.29260063]
[1731357928033,0.00230192,86912.0,86891.0,0.29260063]
[1731357928238,0.17265988,86902.0,86891.0,0.11994075]
[1731357928470,0.17265988,86911.0,86892.0,0.1]
[1731357928471,0.00230192,86910.0,86892.0,0.1]
[1731357928653,0.00230192,86910.0,86890.0,0.0754]
[1731357928654,0.17265988,86901.0,86890.0,0.0754]
[1731357928819,0.00230192,86910.0,86890.0,0.0754]
[1731357929407,0.17265988,86909.0,86891.0,0.12224227]
[1731357929640,0.17265988,86909.0,86891.0,0.11994075]
[1731357929839,0.00230192,86908.0,86890.0,0.0754]
[1731357930013,0.17265988,86909.0,86890.0,0.0754]
[1731357930014,0.1656618,86909.0,86890.0,0.0754]
[1731357930214,0.1614618,86909.0,86890.0,0.0754]
[1731357930413,0.1580618,86909.0,86884.0,0.0008519]
[1731357930627,0.20002357,86895.0,86884.0,0.0008519]
[1731357930853,0.005,86885.0,86884.0,0.0008519]
[1731357931069,0.12494075,86885.0,86884.0,0.0008519]
[1731357931727,1.62494075,86885.0,86884.0,0.0008519]
[1731357932555,0.17265988,86900.0,86884.0,0.0008519]
[1731357932556,0.005,86898.0,86884.0,0.0008519]
[1731357932757,0.29260063,86897.0,86884.0,0.0008519]
[1731357933349,0.11994075,86897.0,86884.0,0.0008519]
[1731357933555,0.17265988,86896.0,86887.0,0.1]
[1731357934204,0.21968584,86896.0,86887.0,0.1]
[1731357934395,0.04702596,86896.0,86884.0,0.0008519]
[1731357934549,0.04702596,86896.0,86886.0,0.1]
[1731357934749,0.005,86905.0,86886.0,0.1]
[1731357934950,0.17265988,86900.0,86886.0,0.1]
[1731357935303,0.11994075,86899.0,86884.0,0.0008519]
[1731357935512,0.11994075,86899.0,86886.0,0.1]
[1731357935685,0.11994075,86899.0,86884.0,0.0008519]
[1731357935925,0.20002357,86894.0,86884.0,0.0008519]
[1731357936140,0.005,86892.0,86884.0,0.0008519]
[1731357936348,0.11994075,86891.0,86884.0,0.0008519]
[1731357936464,0.005,86886.0,86884.0,0.0008519]
[1731357936662,0.11994075,86885.0,86884.0,0.0008519]
[1731357937715,0.32496432,86885.0,86884.0,0.0008519]
[1731357940663,0.12494075,86885.0,86884.0,0.0008519]
[1731357941132,0.11966184,86885.0,86884.0,0.0008519]
[1731357941869,0.12466184,86885.0,86884.0,0.0008519]
[1731357942276,0.11966184,86885.0,86884.0,0.0008519]
[1731357943104,0.12466184,86885.0,86884.0,0.0008519]
[1731357944875,0.12459167,86885.0,86884.0,0.0008519]
[1731357945272,0.14759167,86885.0,86884.0,0.0008519]
[1731357946122,0.12459167,86885.0,86884.0,0.0008519]
[1731357946352,0.11959167,86885.0,86884.0,0.0008519]
[1731357948265,0.34961524,86885.0,86884.0,0.0008519]
[1731357948541,0.34761524,86885.0,86884.0,0.0008519]
[1731357948762,0.34261524,86885.0,86884.0,0.0008519]
[1731357948947,0.34761524,86885.0,86884.0,0.0008519]
[1731357949381,0.005,86871.0,86848.0,0.0008528]
[1731357949592,1.61994075,86870.0,86869.0,0.17265988]
[1731357949818,1.61994075,86870.0,86848.0,0.0008528]
[1731357949819,1.61994075,86870.0,86850.0,0.00230254]
[1731357950054,1.61994075,86870.0,86848.0,0.0008528]
[1731357950686,1.66570684,86870.0,86848.0,0.0008528]
[1731357950897,0.04576609,86870.0,86848.0,0.0008528]
[1731357951111,0.005,86879.0,86848.0,0.0008528]
[1731357951332,0.17265988,86872.0,86848.0,0.0008528]
[1731357951579,0.11994075,86878.0,86859.0,0.1]
[1731357951798,0.17265988,86875.0,86859.0,0.1]
[1731357951944,0.29260063,86875.0,86859.0,0.1]
[1731357952674,0.29260063,86875.0,86848.0,0.0008528]
[1731357953534,0.04749259,86883.0,86874.0,0.17265988]
[1731357953753,0.17265988,86881.0,86871.0,0.1]
[1731357953992,0.29260063,86881.0,86871.0,0.1]
[1731357954212,0.0017034,86885.0,86872.0,0.17265988]
[1731357954421,0.0017034,86885.0,86871.0,0.1]
[1731357954422,0.04630271,86881.0,86871.0,0.1]
[1731357954631,0.17265988,86882.0,86871.0,0.1]
[1731357955507,0.20002357,86878.0,86863.0,0.0465]
[1731357955724,0.20002357,86878.0,86859.0,0.0008517]
[1731357955725,0.11994075,86878.0,86870.0,0.1]
[1731357956595,0.11994075,86878.0,86859.0,0.0008517]
[1731357956821,0.04925198,86885.0,86864.0,0.1]
[1731357957030,0.17265988,86879.0,86864.0,0.1]
[1731357957462,0.16345171,86879.0,86873.0,0.1]
[1731357958090,0.16919273,86885.0,86873.0,0.1]
[1731357959077,0.16919273,86885.0,86859.0,0.00315393]
[1731357959285,0.16919273,86885.0,86868.0,0.1]
[1731357959489,0.17265988,86882.0,86868.0,0.1]
[1731357960350,0.17265988,86882.0,86873.0,0.1]
[1731357960549,0.17265988,86882.0,86859.0,0.00315395]
[1731357960753,0.17265988,86882.0,86862.0,0.17265988]
[1731357960954,0.17265988,86882.0,86863.0,0.10230221]
[1731357961558,0.17265988,86882.0,86863.0,0.1]
[1731357961760,0.04925198,86885.0,86865.0,0.17265988]
[1731357962130,0.04925198,86885.0,86863.0,0.1]
[1731357962131,0.17265988,86882.0,86864.0,0.00230221]
[1731357962338,0.04925198,86885.0,86866.0,0.1]
[1731357962509,0.17265988,86882.0,86866.0,0.10230216]
[1731357962713,0.17265988,86882.0,86866.0,0.1]
[1731357962887,0.04925198,86885.0,86868.0,0.35075988]
[1731357963096,0.04925198,86885.0,86871.0,0.0477]
[1731357963274,0.17265988,86881.0,86871.0,0.0477]
[1731357963479,0.04925198,86885.0,86871.0,0.0477]
[1731357963480,0.17265988,86880.0,86871.0,0.0477]
[1731357963770,0.17265988,86880.0,86870.0,0.1]
[1731357963991,0.04925198,86885.0,86870.0,0.1]
[1731357964179,0.04925198,86885.0,86868.0,0.0781]
[1731357964180,0.16919273,86885.0,86868.0,0.0781]
[1731357964387,0.16919273,86885.0,86870.0,0.17265988]
[1731357964610,0.16919273,86885.0,86868.0,0.0781]
[1731357964831,0.17265988,86881.0,86868.0,0.0781]
[1731357965983,0.17265988,86881.0,86866.0,0.1]
[1731357965984,0.17265988,86872.0,86870.0,0.0008517]
[1731357966205,0.31996432,86880.0,86870.0,0.0008517]
[1731357966424,0.005,86878.0,86870.0,0.0008517]
[1731357966638,0.11994075,86877.0,86870.0,0.0008517]
[1731357967730,0.04635585,86880.0,86870.0,0.0008517]
[1731357968174,0.0017034,86885.0,86872.0,0.17265988]
[1731357968383,0.0017034,86885.0,86870.0,0.0008517]
[1731357968384,0.04783531,86885.0,86883.0,0.1]
[1731357968593,0.0017034,86885.0,86883.0,0.1]
[1731357969017,0.0017034,86885.0,86884.0,0.03422955]
[1731357969229,0.17265988,86924.0,86892.0,0.005]
[1731357969454,0.17265988,86924.0,86884.0,0.30547182]
[1731357969455,0.17265988,86900.0,86894.0,0.1]
[1731357969665,0.17265988,86900.0,86895.0,0.03422955]
[1731357969886,0.17265988,86897.0,86895.0,0.03422955]
[1731357970132,0.20002357,86911.0,86894.0,0.1]
[1731357970133,0.04653517,86900.0,86894.0,0.1]
[1731357970364,0.11994075,86899.0,86894.0,0.1]
[1731357970574,0.11994075,86899.0,86880.0,0.0811]
[1731357970806,0.11994075,86899.0,86885.0,0.1]
[1731357971018,0.11994075,86899.0,86880.0,0.0811]
[1731357971228,0.11994075,86899.0,86881.0,0.13421803]
[1731357971502,0.17265988,86898.0,86882.0,0.03421873]
[1731357971703,0.17265988,86898.0,86881.0,0.1]
[1731357971704,0.11994075,86897.0,86881.0,0.1]
[1731357971914,0.11994075,86897.0,86870.0,0.0008517]
[1731357971915,0.20002357,86886.0,86870.0,0.0767517]
[1731357972122,0.38268345,86898.0,86870.0,0.0767517]
[1731357972123,0.20002357,86877.0,86871.0,0.17265988]
[1731357972338,0.11994075,86876.0,86871.0,0.17265988]
[1731357972546,0.11994075,86876.0,86870.0,0.0008517]
[1731357972767,0.17265988,86873.0,86870.0,0.0008517]
[1731357972975,0.005,86882.0,86870.0,0.0008517]
[1731357973182,0.17265988,86880.0,86870.0,0.0008517]
[1731357973404,0.11994075,86879.0,86870.0,0.0008517]
[1731357973607,1.5,86878.0,86870.0,0.0008517]
[1731357973820,0.11994075,86877.0,86870.0,0.0008517]
[1731357974660,0.12494075,86877.0,86870.0,0.0008517]
[1731357975636,1.5,86876.0,86870.0,0.0008517]
[1731357975837,0.11994075,86875.0,86870.0,0.0008517]
[1731357977201,0.11994075,86873.0,86870.0,0.0008517]
[1731357980126,0.11994075,86873.0,86870.0,0.0020517]
[1731357980511,0.16554271,86873.0,86870.0,0.0020517]
[1731357981605,0.04560196,86873.0,86872.0,0.1]
[1731357982027,0.005,86886.0,86873.0,0.1]
[1731357982144,0.11994075,86885.0,86873.0,0.1]
[1731357983006,0.11994075,86885.0,86870.0,0.0020517]
[1731357983520,0.20002357,86883.0,86870.0,0.0020517]
[1731357983719,0.11994075,86882.0,86870.0,0.0020517]
[1731357984381,0.11994075,86882.0,86871.0,0.17265988]
[1731357984596,0.05118989,86888.0,86871.0,0.17265988]
[1731357984597,0.04618989,86888.0,86872.0,0.1]
[1731357984817,0.17265988,86887.0,86875.0,0.03387356]
[1731357985054,0.682,86906.0,86875.0,0.03387356]
[1731357985055,0.21885443,86898.0,86880.0,0.03387356]
[1731357985278,0.17265988,86889.0,86882.0,0.03387356]
[1731357985496,0.21885443,86898.0,86883.0,0.03387356]
[1731357985648,0.33879518,86898.0,86883.0,0.03387356]
[1731357985864,0.1661353,86898.0,86885.0,0.03387356]
[1731357986230,0.17265988,86897.0,86885.0,0.03387356]
[1731357986592,0.17265988,86897.0,86884.0,0.03387356]
[1731357986796,0.1661353,86898.0,86885.0,0.03387356]
[1731357987010,0.17265988,86897.0,86885.0,0.03387356]
[1731357987590,0.17265988,86897.0,86884.0,0.03387356]
[1731357987978,0.1661353,86898.0,86881.0,0.1]
[1731357987979,0.1661353,86898.0,86883.0,0.03387356]
[1731357988371,0.1661353,86898.0,86884.0,0.03387356]
[1731357988557,0.17265988,86896.0,86884.0,0.03387356]
[1731357989000,0.1661353,86898.0,86884.0,0.03387356]
[1731357989431,0.04619455,86898.0,86890.0,0.03387356]
[1731357989670,0.17265988,86915.0,86896.0,0.03387356]
[1731357989882,0.17265988,86915.0,86910.0,0.0755]
[1731357990109,0.17265988,86915.0,86913.0,0.16762396]
[1731357990342,0.17265988,86915.0,86910.0,0.07780098]
[1731357990343,0.04651736,86926.0,86914.0,0.20183496]
[1731357990611,0.04651736,86926.0,86914.0,0.1]
[1731357991226,0.04651736,86926.0,86901.0,0.03380581]
[1731357991454,0.19984362,86921.0,86905.0,0.17265988]
[1731357991644,0.11994075,86920.0,86906.0,0.1]
[1731357992092,0.11994075,86920.0,86918.0,0.1]
[1731357992265,0.005,86916.0,86915.0,0.05070603]
[1731357992508,0.005,86917.0,86915.0,0.03380376]
[1731357992739,0.005,86917.0,86901.0,0.10140813]
[1731357992740,0.19984362,86918.0,86914.0,0.05070603]
[1731357992937,0.11994075,86920.0,86916.0,0.08450677]
[1731357993138,0.11994075,86920.0,86918.0,0.08447522]
[1731357993312,0.11994075,86920.0,86911.0,0.10140813]
[1731357993313,0.11994075,86920.0,86917.0,0.08447522]
[1731357993721,0.11994075,86920.0,86919.0,0.06755232]
[1731357994392,0.11994075,86920.0,86918.0,0.16755232]
[1731357994640,0.11994075,86920.0,86919.0,0.05066602]
[1731357995026,0.11994075,86920.0,86918.0,0.05066602]
[1731357996051,0.11994075,86920.0,86919.0,0.03377463]
[1731357996261,0.11994075,86920.0,86918.0,0.05066602]
[1731357996473,0.0460742,86925.0,86918.0,0.05066602]
[1731357996678,0.0460742,86925.0,86920.0,0.0337654]
[1731357996879,0.17265988,86933.0,86920.0,0.03376582]
[1731357996880,0.11994075,86924.0,86920.0,0.03376582]
[1731357997114,1.61994075,86924.0,86919.0,0.03376582]
[1731357997324,1.61994075,86924.0,86917.0,0.08376582]
[1731357998099,1.61994075,86924.0,86913.0,0.05064874]
[1731357998313,1.61994075,86924.0,86914.0,0.22330862]
[1731357998516,1.61994075,86924.0,86914.0,0.05064874]
[1731357998722,1.61994075,86924.0,86915.0,0.05064874]
[1731357998930,1.66553028,86924.0,86915.0,0.05064874]
[1731357999336,0.005,86921.0,86913.0,0.05064874]
[1731357999528,0.005,86921.0,86907.0,0.08441457]
[1731357999529,0.19984362,86916.0,86907.0,0.05064874]
[1731357999827,0.11994075,86915.0,86902.0,0.05064874]
[1731358000018,0.19984362,86905.0,86897.0,0.05064874]
[1731358000148,0.11994075,86904.0,86898.0,0.17265988]
[1731358000361,0.11994075,86904.0,86893.0,0.05064874]
[1731358000785,0.11994075,86904.0,86878.0,0.0771]
[1731358000786,0.11994075,86904.0,86892.0,0.05064874]
[1731358000982,0.11994075,86904.0,86894.0,0.17265988]
[1731358001185,0.11994075,86904.0,86892.0,0.05064874]
[1731358001455,0.11994075,86904.0,86893.0,0.05064874]
[1731358001653,0.11994075,86904.0,86894.0,0.05064874]
[1731358002081,0.11994075,86904.0,86893.0,0.05064874]
[1731358003138,0.16555677,86904.0,86893.0,0.05064874]
[1731358003782,0.04561602,86904.0,86902.0,0.05064874]
[1731358003997,0.04561602,86904.0,86903.0,0.06753165]
[1731358004194,0.17265988,86911.0,86902.0,0.06758119]
[1731358004477,0.33907495,86911.0,86906.0,0.05068688]
[1731358004678,0.04647432,86911.0,86906.0,0.15068688]
[1731358004893,0.04647432,86911.0,86908.0,0.15068688]
[1731358005118,0.0017034,86924.0,86910.0,0.05068688]
[1731358005302,0.17265988,86917.0,86910.0,0.15068688]
[1731358005544,0.0017034,86924.0,86910.0,0.15068688]
[1731358005780,0.0017034,86924.0,86913.0,0.05068688]
[1731358005984,0.0017034,86924.0,86915.0,0.05068688]
[1731358006206,0.0017034,86924.0,86913.0,0.1]
[1731358006207,0.0017034,86924.0,86919.0,0.05068688]
[1731358006405,0.0017034,86924.0,86916.0,0.15068688]
[1731358006612,0.0017034,86924.0,86918.0,0.15068688]
[1731358006869,0.0483923,86924.0,86920.0,0.05068688]
[1731358007101,0.0483923,86924.0,86921.0,0.06758119]
[1731358007102,0.0017034,86924.0,86921.0,0.06758119]
[1731358007327,0.0017034,86924.0,86923.0,0.1813]
[1731358007548,0.19768248,86934.0,86923.0,0.1813]
[1731358007549,0.37034236,86934.0,86924.0,0.1]
[1731358007775,0.15,86934.0,86928.0,0.20118995]
[1731358008004,0.15,86934.0,86933.0,0.20118995]
[1731358008206,0.15,86934.0,86933.0,0.13412178]
[1731358008411,0.15,86934.0,86933.0,0.1]
[1731358009043,0.15,86934.0,86929.0,0.1473]
[1731358009256,0.15,86934.0,86929.0,0.0473]
[1731358009434,0.15,86934.0,86931.0,0.1]
[1731358009734,0.15,86934.0,86931.0,0.08423898]
[1731358009969,0.17265988,86933.0,86931.0,0.06739024]
[1731358010194,0.17265988,86933.0,86914.0,0.0489]
[1731358010195,0.005,86930.0,86925.0,0.03370102]
[1731358010411,0.34278437,86929.0,86916.0,0.03370102]
[1731358010632,0.19984362,86923.0,86922.0,0.17265988]
[1731358010838,0.19984362,86923.0,86913.0,0.03371887]
[1731358010839,0.31978437,86923.0,86913.0,0.03371887]
[1731358011044,0.19984362,86914.0,86910.0,0.03371887]
[1731358011279,0.19984362,86914.0,86901.0,0.03371887]
[1731358011280,0.11994075,86913.0,86901.0,0.03371887]
[1731358011482,0.11994075,86913.0,86902.0,0.17265988]
[1731358011895,0.11994075,86913.0,86899.0,0.03371887]
[1731358011896,1.5,86912.0,86899.0,0.03371887]
[1731358012107,0.11994075,86911.0,86897.0,0.03371887]
[1731358012326,0.29260063,86911.0,86898.0,0.03371887]
[1731358012781,1.5,86910.0,86898.0,0.03371887]
[1731358012987,1.5,86910.0,86893.0,0.16743774]
[1731358012988,0.11994075,86909.0,86896.0,0.03371887]
[1731358013188,0.11994075,86909.0,86895.0,0.03371887]
[1731358013604,0.29260063,86909.0,86895.0,0.03371887]
[1731358014064,0.29260063,86909.0,86896.0,0.03371887]
[1731358014292,0.29260063,86909.0,86895.0,0.03371887]
[1731358014508,0.29260063,86909.0,86894.0,0.03371887]
[1731358014509,0.19560062,86909.0,86894.0,0.03371887]
[1731358014708,0.19560062,86909.0,86893.0,0.03371887]
[1731358015148,0.005,86908.0,86892.0,0.03371887]
[1731358015382,0.19984362,86905.0,86892.0,0.03371887]
[1731358015617,0.19984362,86905.0,86864.0,0.005]
[1731358015618,0.005,86894.0,86888.0,0.03371887]
[1731358015835,0.11994075,86893.0,86884.0,0.03371887]
[1731358016078,0.11994075,86893.0,86865.0,0.0753]
[1731358016079,0.11994075,86893.0,86878.0,0.03371887]
[1731358016277,0.11994075,86893.0,86876.0,0.03371887]
[1731358016495,0.12494075,86893.0,86876.0,0.03371887]
[1731358016872,0.12494075,86893.0,86875.0,0.03371887]
[1731358017208,1.5,86892.0,86876.0,0.03371887]
[1731358017429,0.11994075,86891.0,86875.0,0.03371887]
[1731358017845,0.11994075,86891.0,86878.0,0.03371887]
[1731358018045,1.5,86890.0,86880.0,0.03371887]
[1731358018262,0.11994075,86889.0,86879.0,0.03371887]
[1731358018463,0.11994075,86889.0,86878.0,0.03371887]
[1731358018661,0.11994075,86889.0,86877.0,0.03371887]
[1731358019505,0.11994075,86889.0,86878.0,0.03371887]
[1731358019891,0.11994075,86889.0,86878.0,0.03377931]
[1731358020292,0.05232111,86893.0,86872.0,0.1]
[1731358020293,0.04732111,86893.0,86879.0,0.03377931]
[1731358020541,0.17265988,86892.0,86885.0,0.03463101]
[1731358020670,0.11994075,86902.0,86885.0,0.0008517]
[1731358020870,0.17265988,86900.0,86885.0,0.0008517]
[1731358021106,0.17765988,86909.0,86887.0,0.13377931]
[1731358021107,0.17265988,86909.0,86887.0,0.13377931]
[1731358021337,0.17265988,86899.0,86887.0,0.1]
[1731358021543,0.11994075,86908.0,86887.0,0.1]
[1731358022257,0.11994075,86908.0,86886.0,0.03377682]
[1731358022476,0.11994075,86908.0,86887.0,0.03377682]
[1731358022624,0.11994075,86908.0,86890.0,0.03377682]
[1731358023045,0.11994075,86908.0,86891.0,0.03377682]
[1731358023295,0.0461573,86909.0,86898.0,0.17265988]
[1731358023503,0.0461573,86909.0,86889.0,0.05066524]
[1731358023504,0.0461573,86909.0,86899.0,0.03377682]
[1731358023846,0.0461573,86909.0,86895.0,0.15066524]
[1731358023847,0.17265988,86914.0,86903.0,0.03377682]
[1731358024051,0.17265988,86933.0,86908.0,0.03377682]
[1731358024276,0.17265988,86913.0,86911.0,0.03377682]
[1731358024494,0.11994075,86912.0,86909.0,0.03377682]
[1731358024738,0.11994075,86912.0,86904.0,0.13377682]
[1731358024950,0.0824,86926.0,86902.0,0.05066524]
[1731358024951,0.005,86928.0,86907.0,0.03377682]
[1731358025157,0.17265988,86933.0,86910.0,0.03377682]
[1731358025158,0.17265988,86923.0,86910.0,0.03377682]
[1731358025383,0.17265988,86923.0,86910.0,0.1]
[1731358025384,0.11994075,86922.0,86910.0,0.1]
[1731358026449,0.01,86930.0,86913.0,0.03375629]
[1731358026644,0.17265988,86924.0,86913.0,0.03375629]
[1731358027034,0.0017026,86924.0,86912.0,0.03375629]
[1731358027453,0.0017026,86924.0,86913.0,0.03375629]
[1731358027691,0.17265988,86923.0,86914.0,0.03375629]
[1731358027900,0.17265988,86923.0,86913.0,0.03375629]
[1731358028100,0.17265988,86923.0,86914.0,0.03375629]
[1731358028245,0.29260063,86923.0,86914.0,0.03375629]
[1731358028447,0.29260063,86923.0,86913.0,0.03375629]
[1731358028448,0.19984362,86917.0,86913.0,0.03375629]
[1731358028894,0.19984362,86917.0,86914.0,0.03375629]
[1731358029105,0.04832166,86924.0,86913.0,0.03375629]
[1731358029306,0.04832166,86924.0,86916.0,0.03375629]
[1731358029503,0.04832166,86924.0,86919.0,0.03375629]
[1731358030666,0.04832166,86924.0,86920.0,0.03375629]
[1731358030841,0.04832166,86924.0,86922.0,0.06751258]
[1731358031185,0.04832166,86924.0,86921.0,0.08439073]
[1731358031409,0.04832166,86924.0,86923.0,0.35004171]
[1731358031410,0.0017026,86924.0,86923.0,0.35004171]
[1731358031648,0.0017026,86924.0,86923.0,0.38187815]
[1731358031864,0.0017026,86924.0,86923.0,0.37687815]
[1731358032525,0.0017026,86924.0,86923.0,0.34274075]
[1731358033296,0.0017026,86924.0,86923.0,0.2228]
[1731358033502,0.0017026,86924.0,86912.0,0.0825]
[1731358033877,0.0017026,86924.0,86914.0,0.1]
[1731358034080,0.0017026,86924.0,86921.0,0.03375484]
[1731358034280,0.11994075,86923.0,86917.0,0.03375484]
[1731358034494,0.11994075,86923.0,86915.0,0.03375484]
[1731358034495,0.12488175,86923.0,86915.0,0.03375484]
[1731358034697,0.12488175,86923.0,86912.0,0.05063226]
[1731358034698,0.19984362,86916.0,86914.0,0.03375484]
[1731358034923,0.19984362,86916.0,86907.0,0.0852384]
[1731358034924,0.11994075,86915.0,86911.0,0.03375484]
[1731358035147,1.5,86914.0,86910.0,0.03375484]
[1731358035380,0.11994075,86913.0,86910.0,0.03375484]
[1731358035584,0.19984362,86916.0,86911.0,0.17265988]
[1731358035784,0.005,86923.0,86912.0,0.03375484]